bitfinex-derivatives/quotes_ETHF0:USTF0_20251008
["timestamp","ask_amount","ask_price","bid_price","bid_amount"]
[1759906108840,1.15695,4454.4,4454.3,3.2078]
[1759906109041,0.82797,4454.2,4454.1,1.19850464]
[1759906109241,1.15697,4454.2,4454.1,0.22674834]
[1759906109745,1.15697,4454.2,4454.1,1.42791148]
[1759906110744,1.15697,4454.2,4454.1,1.96191148]
[1759906110946,0.753,4454.2,4454.1,1.96191148]
[1759906111449,0.753,4454.2,4454.1,1.96238186]
[1759906111841,0.753,4454.2,4454.1,1.64998186]
[1759906112349,0.753,4454.2,4454.1,0.44834834]
[1759906112954,1.5217557,4454.2,4454.1,0.00184834]
[1759906114460,4.45976733,4454.2,4454.1,0.00184834]
[1759906115971,3.69101163,4454.2,4454.1,0.00184834]
[1759906116264,4.68476733,4454.2,4454.1,0.00184834]
[1759906127168,0.97474,4453.5,4453.3,4.40981923]
[1759906127468,1.7787557,4453.4,4453.3,4.40981923]
[1759906128162,1.7787557,4453.4,4453.3,3.42230271]
[1759906128868,1.01,4453.4,4453.3,3.42230271]
[1759906130468,1.01,4453.4,4453.3,3.21000271]
[1759906136970,0.5604,4453.8,4453.7,1.15691]
[1759906137176,0.7854,4453.8,4453.7,1.9256657]
[1759906137474,0.7854,4453.8,4453.7,1.5216557]
[1759906137669,1.01,4453.8,4453.7,1.5216557]
[1759906140876,1.01,4453.8,4453.7,1.1994557]
[1759906141181,1.31474,4453.5,4453.4,1.41274821]
[1759906142979,1.31474,4453.5,4453.4,2.39990391]
[1759906143679,1.31474,4453.5,4453.4,2.72210391]
[1759906146083,1.17212,4453.7,4453.6,0.7456]
[1759906146276,0.3398,4453.7,4453.6,0.7456]
[1759906146477,0.5648,4453.7,4453.6,0.7456]
[1759906146673,0.9931,4453.7,4453.6,0.7456]
[1759906147377,1.17213,4453.6,4453.5,1.20203348]
[1759906147581,0.9021,4453.5,4453.4,1.20203348]
[1759906148090,1.17214,4453.4,4453.3,3.21000271]
[1759906148383,1.17214,4453.4,4452.9,1.22449101]
[1759906148384,0.9021,4453.0,4452.9,1.22449101]
[1759906148588,1.1271,4453.0,4452.9,1.22449101]
[1759906149283,1.1271,4453.0,4452.9,0.02486371]
[1759906150785,4.05359082,4453.0,4452.9,0.02486371]
[1759906154492,4.53769277,4453.0,4452.9,0.02486371]
[1759906155792,4.05359082,4453.0,4452.9,0.02486371]
[1759906159189,4.82234652,4453.0,4452.9,0.02486371]
[1759906164290,3.82859082,4453.0,4452.9,0.24066371]
[1759906164484,4.05359082,4453.0,4452.9,0.44986371]
[1759906164689,4.05359082,4453.0,4452.9,0.77046371]
[1759906165883,0.7681,4453.0,4452.9,0.77046371]
[1759906166085,0.225,4453.0,4452.9,0.77046371]
[1759906166387,0.5648,4453.0,4452.9,0.77046371]
[1759906167697,0.225,4453.0,4452.9,0.77046371]
[1759906168091,0.225,4453.0,4452.9,41.57046371]
[1759906168394,0.62907,4453.1,4453.0,0.7456]
[1759906168588,1.17487,4453.1,4453.0,0.7456]
[1759906168992,1.39717,4453.1,4453.0,0.7456]
[1759906169995,1.39717,4453.1,4453.0,0.425]
[1759906170595,1.39717,4453.1,4453.0,0.7456]
[1759906172294,0.3398,4454.1,4454.0,0.425]
[1759906172499,0.5458,4454.1,4454.0,4.9121676]
[1759906172798,0.5458,4454.1,4454.0,44.7534]
[1759906173704,0.3398,4454.1,4454.0,44.7534]
[1759906173892,0.40397,4454.2,4454.0,44.5365]
[1759906174092,0.94977,4454.2,4454.1,0.7456]
[1759906174399,1.17207,4454.2,4454.1,0.7456]
[1759906181398,1.17207,4454.2,4454.0,44.0078]
[1759906181599,0.7657,4454.1,4454.0,3.2078]
[1759906181999,0.7657,4454.1,4454.0,3.4292]
[1759906182404,0.5578,4454.1,4454.0,3.9698]
[1759906182595,0.62897,4454.2,4454.1,0.762]
[1759906183205,0.3394,4454.4,4454.2,0.762]
[1759906183206,0.40397,4454.3,4454.2,0.762]
[1759906184302,0.74337,4454.3,4454.2,0.762]
[1759906184600,0.40395,4454.5,4454.2,0.762]
[1759906184907,1.00975,4455.1,4454.2,0.762]
[1759906184908,0.00205972,4455.0,4454.9,0.762]
[1759906185097,0.00205972,4455.0,4454.9,3.9698]
[1759906188000,0.00205972,4455.0,4454.9,4.1948]
[1759906189307,0.00205972,4455.0,4454.9,44.9948]
[1759906202523,0.00205972,4455.0,4454.9,44.7698]
[1759906202524,0.47695972,4455.0,4454.9,44.7698]
[1759906203020,0.00205972,4455.0,4454.9,44.7698]
[1759906210312,0.00205972,4455.0,4454.9,45.97183348]
[1759906210922,4.29211,4456.0,4455.9,0.7422]
[1759906211120,4.98884813,4456.0,4455.9,0.7422]
[1759906211621,4.98884813,4456.0,4455.9,0.4236]
[1759906211821,4.99160336,4456.0,4455.9,0.4236]
[1759906212719,4.99160336,4456.0,4455.9,0.2137]
[1759906214021,0.7602,4455.8,4455.7,0.2137]
[1759906214521,0.7602,4455.8,4455.7,0.5323]
[1759906215410,0.40382,4455.9,4455.7,0.7422]
[1759906215618,3.21055523,4456.0,4455.9,0.7422]
[1759906215619,0.00275523,4456.0,4455.9,0.7422]
[1759906216214,0.00275523,4456.0,4455.9,3.95]
[1759906216424,0.00275523,4456.0,4455.9,5.15203348]
[1759906217020,0.00275523,4456.0,4455.9,5.37703348]
[1759906217422,0.00275523,4456.0,4455.9,46.17703348]
[1759906219432,0.00275523,4456.0,4455.9,44.975]
[1759906222226,0.00275523,4456.0,4455.9,46.17703348]
[1759906223130,0.32825523,4456.0,4455.9,45.95203348]
[1759906223321,0.45635523,4456.0,4455.9,44.75]
[1759906224225,0.89105523,4456.0,4455.9,3.6314]
[1759906224422,0.54925523,4456.0,4455.9,3.95]
[1759906224634,0.32825523,4456.0,4455.9,3.95]
[1759906224829,0.00275523,4456.0,4455.9,44.75]
[1759906225031,0.45635523,4456.0,4455.9,44.75]
[1759906225631,1.84982283,4456.0,4455.9,3.2078]
[1759906225829,1.84982283,4456.0,4455.5,0.3186]
[1759906225830,0.5465,4455.5,4455.4,0.7422]
[1759906226026,0.5465,4455.5,4455.4,41.5422]
[1759906226529,1.07845,4455.5,4455.4,41.2236]
[1759906227029,1.29215,4455.5,4455.4,0.4236]
[1759906227531,1.29215,4455.5,4455.4,0.7422]
[1759906228531,1.29215,4455.5,4455.4,0.2137]
[1759906228733,0.7602,4455.4,4455.3,3.2078]
[1759906229032,0.7602,4455.4,4454.9,1.20203348]
[1759906229033,0.7602,4454.7,4454.6,0.7422]
[1759906229337,0.3255,4454.7,4454.6,45.95203348]
[1759906229538,0.40392,4454.8,4454.7,0.7422]
[1759906229539,0.72942,4454.8,4454.7,0.7422]
[1759906229733,0.95042,4454.8,4454.7,1.51071661]
[1759906231732,0.7294,4455.0,4454.9,0.4236]
[1759906231931,0.4039,4455.0,4454.9,0.7422]
[1759906232439,0.7294,4455.0,4454.9,0.7422]
[1759906233934,0.9504,4455.0,4454.9,0.7422]
[1759906234138,1.2922,4455.0,4454.9,0.7422]
[1759906235538,0.9504,4455.0,4454.9,0.7422]
[1759906237338,0.3247,4455.4,4454.9,0.4236]
[1759906237543,0.7554,4455.9,4455.8,0.7779]
[1759906238235,1.15922,4455.9,4455.8,0.7779]
[1759906241546,1.15922,4455.9,4455.8,0.4505]
[1759906251453,1.15922,4455.9,4455.8,0.7642]
[1759906254045,1.15922,4455.9,4455.8,0.4505]
[1759906255253,1.64195618,4455.9,4455.8,0.4505]
[1759906256051,1.64195618,4455.9,4455.8,0.2268]
[1759906256353,0.5273,4455.3,4455.2,5.92475009]
[1759906257451,0.93117,4455.3,4455.2,5.92475009]
[1759906258654,0.72007,4455.3,4455.2,5.92475009]
[1759906259155,0.93117,4455.3,4455.2,5.92475009]
[1759906260146,0.72007,4455.3,4455.2,5.92475009]
[1759906260957,0.40387,4455.3,4455.2,4.72271661]
[1759906261146,0.72007,4455.3,4455.2,4.72271661]
[1759906261549,0.72007,4455.3,4455.2,5.91842869]
[1759906263553,0.93117,4455.3,4455.2,5.14991208]
[1759906263858,0.93117,4455.3,4455.2,5.91842869]
[1759906264157,0.93117,4455.3,4455.2,4.72271661]
[1759906264362,0.72007,4455.3,4455.2,4.72271661]
[1759906264656,0.40387,4455.3,4455.2,3.9542]
[1759906264858,0.40387,4455.3,4455.2,4.72271661]
[1759906265163,0.72007,4455.3,4455.2,4.72271661]
[1759906265656,0.3162,4455.3,4455.2,4.72271661]
[1759906266157,0.40385,4455.6,4455.5,0.2074]
[1759906266458,0.73645,4455.6,4455.5,1.52601661]
[1759906266758,0.96295,4455.6,4455.5,1.52601661]
[1759906269058,0.40383,4455.8,4455.7,0.7575]
[1759906269260,0.40383,4455.8,4455.7,3.9653]
[1759906269462,0.96293,4455.8,4455.7,3.9653]
[1759906269662,1.17943,4455.8,4455.7,3.2078]
[1759906270165,0.40385,4455.6,4455.5,1.19628441]
[1759906270360,0.40385,4455.6,4455.1,3.5489]
[1759906270361,0.40388,4455.2,4455.1,4.40408441]
[1759906270561,2.17199661,4455.2,4455.1,3.2078]
[1759906270864,2.65526849,4455.2,4455.1,3.2078]
[1759906271363,0.2265,4454.6,4454.5,3.2078]
[1759906271560,0.7756,4454.6,4454.5,3.2078]
[1759906272160,0.9996,4454.6,4454.5,3.2078]
[1759906272466,5.9996,4454.6,4454.5,3.2078]
[1759906272664,0.7756,4454.1,4454.0,3.2078]
[1759906272961,0.9996,4454.1,4454.0,3.2078]
[1759906273163,1.40358,4454.1,4454.0,3.2078]
[1759906273559,1.40358,4454.1,4454.0,3.4152]
[1759906273760,1.40358,4454.1,4454.0,3.2078]
[1759906273960,1.17958,4454.1,4454.0,3.2078]
[1759906274267,1.40358,4454.1,4454.0,3.2078]
[1759906275661,1.17961,4453.8,4453.7,1.31701661]
[1759906275964,1.17961,4453.8,4453.7,4.52481661]
[1759906276559,1.17961,4453.8,4453.7,4.18371661]
[1759906276964,1.17961,4453.8,4453.7,4.73381661]
[1759906277564,1.17961,4453.8,4453.7,4.18371661]
[1759906278361,1.17961,4453.8,4453.7,3.2078]
[1759906280259,1.17965,4453.3,4453.2,3.2078]
[1759906280466,1.40365,4453.3,4453.2,3.2078]
[1759906282566,1.40365,4453.3,4453.2,3.6242]
[1759906282868,1.40365,4453.3,4453.2,3.9653]
[1759906284157,1.40365,4453.3,4453.2,3.6242]
[1759906284670,1.40365,4453.3,4453.2,3.4152]
[1759906284870,1.40465,4453.3,4453.2,3.4152]
[1759906285170,1.40465,4453.3,4453.2,3.2078]
[1759906286169,1.17965,4453.3,4453.2,3.2078]
[1759906286368,1.40465,4453.3,4453.2,3.4152]
[1759906287169,1.17965,4453.3,4453.2,3.4152]
[1759906287368,1.40465,4453.3,4453.2,3.4152]
[1759906288572,1.40465,4453.3,4453.2,3.2078]
[1759906289279,1.17965,4453.3,4453.2,3.2078]
[1759906289479,1.40465,4453.3,4453.2,3.2078]
[1759906290179,4.25743312,4453.3,4453.2,3.2078]
[1759906291573,4.03243312,4453.3,4453.2,3.2078]
[1759906291767,4.25743312,4453.3,4453.2,3.2078]
[1759906292376,4.03243312,4453.3,4453.2,3.2078]
[1759906292575,4.25743312,4453.3,4453.2,3.2078]
[1759906292775,4.03243312,4453.3,4453.2,3.2078]
[1759906293073,4.25743312,4453.3,4453.2,3.2078]
[1759906293272,4.03243312,4453.3,4453.2,3.2078]
[1759906293472,4.25743312,4453.3,4453.2,3.2078]
[1759906294869,4.25743312,4453.3,4452.9,0.02486371]
[1759906294870,0.98268,4453.0,4452.9,0.02486371]
[1759906295067,1.31528,4453.0,4452.9,0.02486371]
[1759906295272,1.54028,4453.0,4452.9,0.02486371]
[1759906299677,1.54028,4453.0,4452.9,0.24026371]
[1759906300071,0.9112,4453.0,4452.9,0.79556371]
[1759906300273,1.1362,4453.0,4452.9,1.75431238]
[1759906302573,1.1362,4453.0,4452.9,0.23506371]
[1759906303677,0.9112,4453.0,4452.9,0.23506371]
[1759906303876,1.1362,4453.0,4452.9,0.56426371]
[1759906304378,1.1362,4453.0,4452.9,0.23506371]
[1759906305383,0.9112,4453.0,4452.9,0.23506371]
[1759906305580,1.1362,4453.0,4452.9,0.44816371]
[1759906305781,0.9112,4453.0,4452.9,0.77736371]
[1759906305981,1.1362,4453.0,4452.9,0.77736371]
[1759906306782,0.9112,4453.0,4452.9,0.77736371]
[1759906306985,1.1362,4453.0,4452.9,0.77736371]
[1759906307682,1.1362,4453.0,4452.9,0.44816371]
[1759906308680,1.1362,4453.0,4452.9,0.77736371]
[1759906310287,1.1362,4453.0,4452.9,0.44816371]
[1759906312088,1.1362,4453.0,4452.9,0.77736371]
[1759906313486,0.225,4453.4,4453.3,0.40405]
[1759906313686,0.225,4453.4,4453.3,2.11529867]
[1759906314085,0.5633,4453.4,4453.3,2.11529867]
[1759906314286,0.3383,4453.4,4453.3,2.11529867]
[1759906314692,0.3383,4453.4,4453.3,1.71124867]
[1759906316686,0.5526,4453.4,4453.3,1.71124867]
[1759906317088,0.7642,4453.4,4453.3,1.71124867]
[1759906319089,0.5526,4453.4,4453.3,1.71124867]
[1759906319385,0.40404,4453.5,4453.3,1.71124867]
[1759906319589,0.40404,4453.5,4453.4,0.7525]
[1759906319791,0.74233,4453.6,4453.5,1.15654]
[1759906320095,0.40403,4453.6,4453.5,0.856]
[1759906321095,0.74233,4453.6,4453.5,41.656]
[1759906322197,0.3383,4453.6,4453.5,41.656]
[1759906323695,0.3383,4453.6,4453.5,41.2233]
[1759906323894,1.16825,4453.3,4453.2,3.2078]
[1759906324094,0.7642,4453.3,4453.2,3.9603]
[1759906324289,0.74233,4453.6,4453.2,4.49574867]
[1759906324490,0.96733,4453.6,4453.5,0.7525]
[1759906324998,1.18163,4453.6,4453.5,0.7525]
[1759906326096,0.95663,4453.6,4453.5,0.7525]
[1759906326605,0.74233,4453.6,4453.5,0.7525]
[1759906327196,0.40401,4453.8,4453.6,0.72722]
[1759906327400,0.72661,4453.8,4453.7,4.91864867]
[1759906327603,0.94501,4453.8,4453.7,4.91864867]
[1759906328700,0.72661,4453.8,4453.7,4.91864867]
[1759906329795,0.40401,4453.8,4453.7,4.91864867]
[1759906330600,1.15241,4453.8,4453.7,4.91864867]
[1759906331301,1.15241,4453.8,4453.7,3.9599]
[1759906331890,0.40401,4453.8,4453.7,4.91864867]
[1759906332401,0.94501,4453.8,4453.7,4.91864867]
[1759906333002,0.3226,4454.4,4454.2,0.3232]
[1759906333196,0.94491,4454.9,4454.8,0.7521]
[1759906333499,0.40391,4454.9,4454.8,0.7521]
[1759906333803,0.3226,4455.2,4455.1,0.7521]
[1759906333804,0.40388,4455.2,4455.1,0.7521]
[1759906334597,0.72644,4455.7,4455.6,0.7521]
[1759906334804,0.40384,4455.7,4455.6,3.9599]
[1759906336096,0.225,4455.8,4455.6,3.9599]
[1759906336301,0.95143,4455.8,4455.7,0.7521]
[1759906336500,0.62883,4455.8,4455.7,0.7521]
[1759906336698,0.40383,4455.8,4455.7,0.7521]
[1759906337101,1.15223,4455.8,4455.7,0.4289]
[1759906339497,0.94483,4455.8,4455.7,0.7521]
[1759906339906,1.15223,4455.8,4455.7,0.7521]
[1759906341413,1.15223,4455.8,4455.7,0.4289]
[1759906343008,1.15223,4455.8,4455.7,0.7521]
[1759906343603,1.15223,4455.8,4455.7,0.4289]
[1759906344107,1.15223,4455.8,4455.7,0.7521]
[1759906345111,0.7484,4455.8,4455.7,0.7521]
[1759906346011,0.541,4455.8,4455.7,0.7521]
[1759906346221,0.7484,4455.8,4455.7,0.7521]
[1759906347614,0.3226,4455.8,4455.7,0.7521]
[1759906348205,0.00275523,4456.0,4455.6,3.61164]
[1759906348206,0.00275523,4456.0,4455.9,1.15592]
[1759906348404,0.00275523,4456.0,4455.9,1.71084867]
[1759906348711,0.54375523,4456.0,4455.9,1.71084867]
[1759906349209,0.32535523,4456.0,4455.9,42.51084867]
[1759906349421,0.00275523,4456.0,4455.9,42.51084867]
[1759906349808,0.00275523,4456.0,4455.9,42.32030801]
[1759906351415,0.00275523,4456.0,4455.9,42.54430801]
[1759906351915,0.32535523,4456.0,4455.9,42.54430801]
[1759906352919,0.45015523,4456.0,4455.9,42.54430801]
[1759906353117,1.21836324,4456.0,4455.9,41.0108]
[1759906353324,0.7484,4455.7,4455.6,3.4186]
[1759906353722,1.15224,4455.7,4455.6,3.4186]
[1759906354320,1.15224,4455.7,4455.6,3.9599]
[1759906354825,0.94484,4455.7,4455.6,3.9599]
[1759906356119,0.73553,4455.9,4455.8,0.4312]
[1759906356329,0.73553,4455.9,4455.8,1.51500801]
[1759906356623,0.00275523,4456.0,4455.9,0.3156]
[1759906356823,0.00275523,4456.0,4455.9,0.7468]
[1759906357123,0.33445523,4456.0,4455.9,0.7468]
[1759906357625,0.73826523,4456.0,4455.9,0.7468]
[1759906357822,1.18886523,4456.0,4455.9,0.7468]
[1759906358029,1.18886523,4456.0,4455.6,3.2078]
[1759906358030,0.40383,4455.8,4455.6,3.2078]
[1759906358229,0.7823,4455.7,4455.6,3.2078]
[1759906358525,0.7823,4455.7,4455.6,3.4317]
[1759906362530,0.7823,4455.7,4455.6,3.9732]
[1759906363735,0.7823,4455.7,4455.6,3.639]
[1759906366331,0.7823,4455.7,4455.6,3.4317]
[1759906366737,0.7823,4455.7,4455.6,3.9743]
[1759906366935,0.3317,4455.7,4455.6,3.9743]
[1759906367137,0.72293,4455.8,4455.7,0.83024]
[1759906367339,0.94573,4455.8,4455.7,1.93264801]
[1759906367531,1.16173,4455.8,4455.7,1.19460801]
[1759906367733,0.7579,4455.7,4455.6,3.2078]
[1759906368038,0.7579,4455.7,4454.5,1.8223233]
[1759906368039,1.16184,4454.6,4454.5,1.8223233]
[1759906368242,2.15404801,4454.6,4454.5,1.8223233]
[1759906368834,1.29409,4454.0,4453.9,3.9684]
[1759906369239,1.29409,4454.0,4453.9,4.73660801]
[1759906371042,1.29409,4454.0,4453.9,3.9684]
[1759906371238,1.29409,4454.0,4453.9,3.2078]
[1759906371938,1.29414,4453.5,4453.4,3.4258]
[1759906372135,1.29414,4453.5,4453.4,3.2078]
[1759906372346,1.29414,4453.5,4452.9,3.45066371]
[1759906372347,1.29418,4453.0,4452.9,3.45066371]
[1759906372643,1.29418,4453.0,4452.9,3.23266371]
[1759906373439,1.29418,4453.0,4452.9,0.02486371]
[1759906378942,0.6741,4452.0,4451.9,3.4258]
[1759906379147,0.8901,4452.0,4451.9,44.0078]
[1759906379847,0.89238758,4452.0,4451.9,44.0098849]
[1759906380441,0.89238758,4452.0,4451.9,3.4278849]
[1759906380642,0.89238758,4452.0,4451.9,4.40449291]
[1759906380843,0.54418758,4452.0,4451.9,4.73869291]
[1759906381447,0.32138758,4452.0,4451.9,4.73869291]
[1759906381947,0.00228758,4452.0,4451.9,4.73869291]
[1759906383452,0.00228758,4452.0,4451.9,45.53869291]
[1759906385652,0.31718758,4452.0,4451.9,45.53869291]
[1759906386050,0.86738758,4452.0,4451.9,3.2098849]
[1759906386355,1.63559559,4452.0,4451.9,0.0020849]
[1759906388455,6.63559559,4452.0,4451.9,0.0020849]
[1759906388957,9.59617456,4452.0,4451.9,0.0020849]
[1759906391558,4.05296655,4452.0,4451.9,0.0020849]
[1759906391755,4.82117456,4452.0,4451.9,0.0020849]
[1759906394451,3.62176655,4452.0,4451.9,0.7416849]
[1759906394658,1.09238758,4452.0,4451.9,0.7416849]
[1759906395154,1.09238758,4452.0,4451.9,0.4265849]
[1759906395957,0.86738758,4452.0,4451.9,0.7416849]
[1759906396156,1.09238758,4452.0,4451.9,0.7416849]
[1759906396663,0.96868758,4452.0,4451.9,0.7416849]
[1759906398863,0.74368758,4452.0,4451.9,0.7416849]
[1759906399059,0.96868758,4452.0,4451.9,0.7416849]
[1759906399659,1.09238758,4452.0,4451.9,0.4265849]
[1759906400153,1.09238758,4452.0,4451.9,0.0020849]
[1759906400154,4.30018758,4452.0,4451.9,0.0020849]
[1759906400360,7.18433266,4452.0,4451.9,0.0020849]
[1759906400757,7.67121273,4452.0,4451.9,0.0020849]
[1759906401066,0.8651,4451.0,4450.9,3.2078]
[1759906401357,0.8651,4451.0,4450.9,3.4145]
[1759906401965,0.8651,4451.0,4450.9,3.41658997]
[1759906402351,0.5352,4451.0,4450.9,4.72859798]
[1759906404164,0.874,4451.0,4450.9,4.72859798]
[1759906404360,0.874,4451.0,4450.9,3.63438997]
[1759906404957,0.874,4451.0,4450.9,3.96038997]
[1759906405461,0.874,4451.0,4450.9,3.20988997]
[1759906405863,0.874,4451.0,4450.9,0.00208997]
[1759906406259,0.874,4451.0,4450.9,0.45158997]
[1759906406561,0.3149,4451.0,4450.9,0.77758997]
[1759906407563,1.06434,4451.3,4451.2,0.7755]
[1759906407865,1.06434,4451.3,4451.2,1.54370801]
[1759906408164,1.16834,4451.3,4451.2,1.21770801]
[1759906408654,1.16834,4451.3,4451.2,1.54370801]
[1759906409556,1.16834,4451.3,4451.2,1.21770801]
[1759906409962,1.16834,4451.3,4451.2,0.2228]
[1759906411062,1.16834,4451.3,4451.2,0.4495]
[1759906415372,1.16834,4451.3,4451.2,0.2228]
[1759906415573,0.97896,4451.0,4450.9,0.54428997]
[1759906415871,1.28706,4451.0,4450.9,0.00208997]
[1759906416266,1.28706,4451.0,4450.9,0.21828997]
[1759906416667,1.28706,4451.0,4450.9,0.75968997]
[1759906416865,1.15786,4451.0,4450.9,0.75968997]
[1759906417066,0.93696,4451.0,4450.9,0.75968997]
[1759906419672,1.28706,4451.0,4450.9,0.43708997]
[1759906420769,1.28706,4451.0,4450.9,0.21828997]
[1759906421075,1.28706,4451.0,4450.9,0.00208997]
[1759906421669,1.51206,4451.0,4450.9,0.00208997]
[1759906426977,1.51206,4451.0,4450.9,0.21278997]
[1759906428481,1.51206,4451.0,4450.9,0.00208997]
[1759906435282,4.71986,4451.0,4450.9,0.00208997]
[1759906435478,4.71986,4451.0,4450.0,1.59553339]
[1759906435479,1.16984,4450.1,4450.0,0.4165]
[1759906436180,1.16984,4450.1,4450.0,0.7405]
[1759906436571,1.16984,4450.1,4450.0,0.74292488]
[1759906436770,1.16984,4450.1,4450.0,0.00242488]
[1759906436975,1.16984,4450.1,4450.0,0.21312488]
[1759906437174,1.16984,4450.1,4450.0,0.74292488]
[1759906440677,0.6687,4450.5,4450.4,0.40432]
[1759906440888,0.7646,4450.5,4450.4,1.14482]
[1759906441183,1.52391,4450.5,4450.4,0.7405]
[1759906441781,1.52391,4450.5,4450.4,0.4165]
[1759906442481,1.52391,4450.5,4450.4,0.2107]
[1759906444279,1.16984,4450.1,4450.0,0.00242488]
[1759906444474,2.35434656,4450.1,4450.0,0.00242488]
[1759906444685,10.83519662,4450.1,4450.0,0.00242488]
[1759906446484,9.87569006,4450.1,4450.0,0.00242488]
[1759906446784,9.87516807,4450.1,4450.0,0.00242488]
[1759906447385,9.38232997,4450.1,4450.0,0.00242488]
[1759906455691,9.15732997,4450.1,4450.0,0.00242488]
[1759906455887,4.38232997,4450.1,4450.0,0.22732488]
[1759906456388,0.7655,4450.1,4450.0,0.76132488]
[1759906456691,0.9905,4450.1,4450.0,0.76132488]
[1759906458490,0.54,4450.1,4450.0,0.76132488]
[1759906458690,1.27366,4451.0,4450.9,0.2249]
[1759906458886,1.49866,4451.0,4450.9,0.2249]
[1759906459894,1.49866,4451.0,4450.9,0.4418]
[1759906460289,0.92766,4451.0,4450.9,0.7589]
[1759906460491,0.40428,4450.8,4450.4,3.2078]
[1759906460792,0.8688,4450.5,4450.4,3.9667]
[1759906461489,0.7402,4450.5,4450.4,3.9667]
[1759906464096,0.225,4450.7,4450.6,0.4419]
[1759906464097,0.5649,4450.7,4450.6,0.4419]
[1759906464295,0.96919,4450.7,4450.6,0.7548]
[1759906464498,1.40719,4450.7,4450.6,0.7548]
[1759906464693,1.40719,4450.7,4450.6,0.4419]
[1759906467296,0.5649,4450.7,4450.6,0.7548]
[1759906467495,0.225,4450.7,4450.6,0.7548]
[1759906467692,0.3399,4450.9,4450.6,0.4419]
[1759906467896,0.5595,4450.9,4450.8,1.71430656]
[1759906470799,0.3399,4451.4,4450.9,0.3129]
[1759906470993,1.18213,4451.4,4451.3,0.7548]
[1759906471194,1.40713,4451.4,4451.3,0.7548]
[1759906473090,0.2196,4451.8,4451.7,0.4419]
[1759906473296,0.62605758,4452.0,4451.9,0.4419]
[1759906473603,0.62605758,4452.0,4451.9,0.7548]
[1759906473798,0.96595758,4452.0,4451.9,0.7548]
[1759906474800,1.18435758,4452.0,4451.9,0.7548]
[1759906474997,1.32045758,4452.0,4451.9,41.5548]
[1759906477603,0.00228758,4452.0,4451.9,41.5548]
[1759906477806,0.00228758,4452.0,4451.9,50.16678]
[1759906478300,0.3165,4452.6,4452.0,0.1035]
[1759906478502,0.93639,4452.9,4452.8,0.4421]
[1759906478699,0.93639,4452.9,4452.8,0.7614]
[1759906479301,0.93894231,4452.9,4452.8,0.7614]
[1759906482910,1.16654231,4452.9,4452.8,0.7614]
[1759906486909,1.39154231,4452.9,4452.8,0.7614]
[1759906488305,1.16654231,4452.9,4452.8,0.7614]
[1759906488607,0.00255231,4452.9,4452.8,1.53133954]
[1759906489510,0.00255231,4452.9,4452.8,42.33133954]
[1759906493016,0.40401,4453.9,4453.7,0.4486]
[1759906493212,0.331,4454.4,4454.2,0.3385]
[1759906493421,0.95855,4454.4,4454.3,0.7871]
[1759906494109,0.96015329,4454.4,4454.3,0.78887003]
[1759906495018,0.96015329,4454.4,4454.3,1.55880957]
[1759906495517,0.40555329,4454.4,4454.3,1.55880957]
[1759906496916,0.00160329,4454.4,4454.3,1.55880957]
[1759906498019,0.00160329,4454.4,4454.3,42.35880957]
[1759906499018,0.00160329,4454.4,4454.3,42.58380957]
[1759906499607,0.00160329,4454.4,4454.3,45.79160957]
[1759906500517,0.00160329,4454.4,4454.3,46.19556957]
[1759906502020,0.00160329,4454.4,4454.3,45.79160957]
[1759906502320,0.00160329,4454.4,4454.3,50.79160957]
[1759906503621,1.00939,4456.4,4454.3,50.79160957]
[1759906503622,3.94256,4456.2,4456.1,0.4486]
[1759906503814,0.73476,4456.2,4456.1,1.55703954]
[1759906504014,0.40376,4456.2,4456.1,1.55703954]
[1759906504514,0.40635649,4456.2,4456.1,1.55703954]
[1759906505922,0.72455649,4456.2,4456.1,1.55703954]
[1759906506120,0.94035649,4456.2,4456.1,1.55703954]
[1759906509416,0.94035649,4456.2,4456.0,3.2078]
[1759906509417,0.3182,4456.1,4456.0,3.2078]
[1759906509621,1.29688,4456.0,4455.9,0.225]
[1759906509818,1.29688,4456.0,4455.9,0.4496]
[1759906510014,1.29688,4456.0,4455.9,0.9991]
[1759906510219,1.29688,4456.0,4455.9,41.7991]
[1759906510421,1.29688,4456.0,4455.9,41.4634]
[1759906510626,1.29688,4456.0,4455.9,41.7991]
[1759906510828,0.93778,4456.0,4455.9,41.7991]
[1759906512334,0.72198,4456.0,4455.9,41.7991]
[1759906512533,0.40378,4456.0,4455.9,41.7991]
[1759906512735,0.40378,4456.0,4455.9,45.0069]
[1759906513738,0.72198,4456.0,4455.9,45.0069]
[1759906513936,0.40378,4456.0,4455.9,45.0069]
[1759906516832,0.40377,4456.1,4456.0,0.4385]
[1759906517035,0.40377,4456.1,4456.0,1.64683954]
[1759906517440,0.00259649,4456.2,4456.1,0.7741]
[1759906520238,0.00259649,4456.2,4456.1,0.9981]
[1759906520442,0.32079649,4456.2,4456.1,0.9981]
[1759906521437,0.00259649,4456.2,4456.1,0.9981]
[1759906521643,0.00259649,4456.2,4456.1,1.40187]
[1759906523943,0.00259649,4456.2,4456.1,0.9981]
[1759906524142,0.53659649,4456.2,4456.1,1.76803954]
[1759906524942,0.32079649,4456.2,4456.1,1.76803954]
[1759906526544,0.00259649,4456.2,4456.1,1.76803954]
[1759906527546,0.00259649,4456.2,4456.1,2.53797908]
[1759906528741,0.3182,4457.5,4457.4,0.2138]
[1759906528945,0.61944,4457.6,4457.5,0.7741]
[1759906529144,1.33692802,4457.6,4457.5,0.7741]
[1759906529340,1.65512802,4457.6,4457.5,0.7741]
[1759906529646,1.65801075,4457.6,4457.5,0.44025978]
[1759906530547,1.65801075,4457.6,4457.5,0.77595978]
[1759906530942,1.65801075,4457.6,4457.5,0.44025978]
[1759906531448,1.65801075,4457.6,4457.5,0.00185978]
[1759906532141,0.72187,4457.2,4457.1,40.8]
[1759906532748,0.8464,4456.9,4456.8,0.6624]
[1759906532947,1.1646,4456.9,4456.8,1.00094136]
[1759906533243,0.9488,4456.9,4456.8,41.80094136]